[Event "45th FIDE Womens Olympiad 2024"]
[Site "Budapest"]
[Date "2024.09.15"]
[Round "5.134"]
[White "Jeda Helal"]
[Black "Zhezhovska, Monika"]
[Result "0-1"]
[ECO "B62"]
[WhiteElo "1569"]
[BlackElo "2106"]
[Annotator "TA"]
[PlyCount "100"]
[EventDate "2024.09.05"]
[EventType "team-tourn"]
[EventCountry "HUN"]
[SourceTitle "playchess.com"]
[Source "ChessBase"]
[SourceQuality "1"]
[WhiteTeam "Jordan"]
[BlackTeam "North Macedonia"]
[WhiteTeamCountry "JOR"]
[BlackTeamCountry "MKD"]
[TimeControl "40/5400+30:1800+30"]

{[%evp 19,100,-5,7,0,0,-17,16,3,51,36,50,45,128,119,127,8,77,47,53,52,212,231,708,695,702,42,888,618,602,631,608,58,55,85,86,0,105,77,66,75,134,39,34,41,41,18,18,19,20,17,19,12,14,13,19,0,0,0,15,12,69,70,70,69,127,136,233,233,227,202,195,192,193,194,162,58,58,56,52,0,53,-29997,204]} 1. e4 c5 2. Nf3 Nc6 3. d4 cxd4 4. Nxd4 Nf6 5. Nc3 d6 6. Bg5 e6 7. Be2 a6 8. O-O Be7 9. Kh1 O-O 10. f4 Qc7 11. Qd3 Bd7 12. Rad1 Rfd8 13. f5 {The position is equal.} b5 (13... Kh8 $11) 14. Qg3 Kh8 15. a3 $40 {[%mdl 128] White mounts an attack.} Rab8 (15... Rdc8 $14) 16. Qh4 $16 {Threatens to win with fxe6.} Ne5 17. Nf3 (17. fxe6 $16 Ng6 18. Bxf6 (18. Qh3 fxe6 19. Bd3 Ne5 $14) 18... Nxh4 19. Bxe7 fxe6 20. Bxh4) 17... Kg8 (17... Bc8 $11) 18. Nxe5 dxe5 19. Rd3 $1 {Black must now prevent Rh3.} b4 $2 (19... exf5 $1 $14 20. Rh3 (20. exf5 Bc6 $17) 20... Bc8) 20. Rg3 $1 $18 {[%csl LRa6,LRf6]} Kh8 $2 (20... Kf8) 21. fxe6 Bxe6 22. axb4 (22. Rxf6 $18 {[%cal Of6h6] White threatens Rh6! and mate.} Qxc3 23. bxc3 bxa3 24. h3) 22... Rxb4 $2 {[%mdl 8192]} (22... Ng8 $14) 23. Bxf6 (23. Bxa6 Rxb2 24. h3 (24. Rxf6 $2 Bxf6 25. h3 Bxg5 $19) 24... Ng8 $15 (24... Rxc2 $2 25. Rxf6 Kg8 26. Rf1 $18)) 23... Bxf6 24. Rxf6 {[%cal Of6h6] Strongly threatening Rh6!} Qe7 {[#]} 25. Rh6 {[%mdl 512]} Qxh4 $14 26. Rxh4 Rxb2 27. Rd3 (27. Bxa6 $2 {leads to mate.} Rb1+ (27... Rxc2 28. Kg1 $16) 28. Nxb1 Rd1+) (27. h3 $1 $16) 27... Rc8 (27... Rd4 $1 $11 28. h3 (28. Rxd4 $2 exd4 29. Nd1 Rxc2 $19) 28... Rxd3 29. Bxd3 a5) 28. Bd1 g6 {Inhibits Rh5.} 29. g4 Kg7 (29... a5 $142) 30. Rhh3 (30. g5 $16) 30... h5 $1 31. Rhg3 hxg4 32. Bxg4 Bxg4 33. Rxg4 Rxc2 34. Nd5 Re2 35. Rc3 Rb8 36. Rc1 Rbb2 37. h4 a5 38. Kg1 a4 {Hoping for ...a3.} 39. Nc3 {[%csl LRa4,LRe2]} Red2 (39... Rec2 $1 $11 40. Rxc2 Rxc2 41. Nxa4 f6) 40. Nxa4 Rb4 41. Nc5 Rbb2 {[#]} (41... Kh6 $14) 42. h5 $1 $16 Kh6 (42... Rb6 $16 {might work better.} 43. hxg6 Rxg6 44. Rxg6+ Kxg6) 43. hxg6 $18 fxg6 44. Ne6 Kh5 {Inhibits Rh4+.} 45. Rg5+ Kh6 46. Rg3 $1 {[%cal Rg3h3]} ({Not} 46. Rxe5 Rg2+ 47. Kf1 Rbf2+ 48. Ke1 Ra2 $11) 46... Kh5 {[#]} 47. Rf1 (47. Re1 $1 $18) 47... Re2 $14 48. Ng7+ Kh6 49. Ne6 {[%cal Rg3h3]} Kh5 $1 50. Rgf3 $2 {[%mdl 8192]} (50. Nf8 $14) 50... Rg2+ {[%mdl 32768] Weighted Error Value: White=0.63/Black=0.31.  Loses game:     	White=1     	---        Mistake:       	White=4     	Black=10     Inaccurate:     	White=1     	Black=1      OK:         	White=10    	Black=11     Best:        	White=2     	Black=2      Strong:       	White=3     	Black=2     . Loss on time!?} 0-1

[Event "45th FIDE Womens Olympiad 2024"]
[Site "Budapest"]
[Date "2024.09.15"]
[Round "5.135"]
[White "Trajkovska, Sanja"]
[Black "Boshra, Alshaeby"]
[Result "1-0"]
[ECO "B12"]
[WhiteElo "1921"]
[BlackElo "1939"]
[Annotator "TA"]
[PlyCount "104"]
[EventDate "2024.09.05"]
[EventType "team-tourn"]
[EventCountry "HUN"]
[SourceTitle "playchess.com"]
[Source "ChessBase"]
[SourceQuality "1"]
[WhiteTeam "North Macedonia"]
[BlackTeam "Jordan"]
[WhiteTeamCountry "MKD"]
[BlackTeamCountry "JOR"]
[TimeControl "40/5400+30:1800+30"]

{[%evp 9,104,11,13,14,18,12,15,0,13,10,12,0,0,-34,-26,-62,11,-115,-104,-107,-97,-110,-93,-140,-131,-139,-114,-101,-108,-134,-116,-114,-100,-113,-38,-21,-23,-31,-45,-156,-153,-291,-277,-266,-285,-270,-276,-467,-318,-288,-250,-255,-246,-258,-254,-248,-233,-213,-208,-394,-375,-414,-405,-510,-484,-1022,-958,-1204,-1181,-1123,-1113,-1675,-1911,-1946,-1708,-5836,-5820,-29974,-29976,-29975,-29977,-29976,-29977,-29980,-29981,-29983,-29984,-29984,-29984,-29984,-29984,-29984,-29983,-29983,-29984,-29984,-29985]} 1. e4 c6 2. d4 d5 3. e5 Bf5 4. h4 h5 5. Bd3 Bxd3 6. Qxd3 {[%cal Oe5e6]} Qa5+ 7. Nd2 {[%cal Oe5e6] aiming for e6!} e6 8. Ngf3 {The position is equal.} Nh6 9. O-O Nf5 10. g3 Qa6 11. c4 c5 12. Qc3 Nc6 (12... cxd4 $15 13. Nxd4 Nxd4 14. Qxd4 Nc6) 13. cxd5 (13. dxc5 $1 $11 {was the only way to keep the balance.} Bxc5 14. cxd5) 13... Ncxd4 $17 14. Nxd4 Nxd4 15. Kg2 exd5 16. Nf3 (16. b4 $142) 16... Ne6 17. Bg5 Be7 18. Bxe7 Kxe7 19. Ng5 d4 20. Qd2 Qc6+ 21. Kh2 Rac8 (21... Nxg5 $17 22. Qxg5+ Kf8) 22. Rae1 $15 Nxg5 23. Qxg5+ Kf8 24. Qf5 {Black continues to play with concentration.} ({Better is} 24. e6 $15) 24... Rh6 $17 25. e6 (25. f4 $17) 25... Rxe6 $19 26. Qxh5 Kg8 {Inhibits Qh8+.} 27. Rxe6 Qxe6 {[%mdl 4096] Endgame. KQR-KQR} 28. b3 $2 (28. Qf3) 28... b6 29. Qf3 Re8 30. a4 Qe2 31. Kg2 Qxf3+ 32. Kxf3 {KR-KR} Re6 33. Rd1 Kf8 34. Rd3 $2 (34. a5 {was necessary.}) 34... Ke7 35. g4 Kd6 36. g5 Kd5 {[#] Hoping for ...c4.} 37. h5 (37. Rd2 $142) 37... c4 38. bxc4+ Kxc4 39. Rd1 d3 {And now ...Kc3 would win.} 40. Kf4 Kc3 {[#] Threatens to win with ...d2.} 41. Rc1+ Kb2 42. Rh1 d2 {( -> ...Re1)} 43. Rd1 Kc2 {Black mates.} 44. Ra1 d1=Q 45. Rxd1 Kxd1 {KR-KP} 46. Kf5 a6 47. f4 b5 48. axb5 axb5 49. g6 Rf6+ 50. Kg5 fxg6 51. h6 Rf5+ ({Stronger than} 51... Rf7 52. h7 Rf8 53. Kxg6 $11) 52. Kxg6 Rxf4 {[%mdl 32768] Weighted Error Value: White=0.66/Black=0.13 (very precise) .  Mistake:       	White=7     	Black=2      Inaccurate:     	White=2     	Black=1      OK:         	White=10    	Black=13     Best:        	---       	Black=3     . Loss on time!?} 1-0

[Event "45th FIDE Womens Olympiad 2024"]
[Site "Budapest"]
[Date "2024.09.15"]
[Round "5.136"]
[White "Ruba Al-Qudah"]
[Black "Eftovska, Lea"]
[Result "1-0"]
[ECO "C24"]
[WhiteElo "1937"]
[BlackElo "1839"]
[Annotator "TA"]
[PlyCount "129"]
[EventDate "2024.09.05"]
[EventType "team-tourn"]
[EventCountry "HUN"]
[SourceTitle "playchess.com"]
[Source "ChessBase"]
[SourceQuality "1"]
[WhiteTeam "Jordan"]
[BlackTeam "North Macedonia"]
[WhiteTeamCountry "JOR"]
[BlackTeamCountry "MKD"]
[TimeControl "40/5400+30:1800+30"]

{[%evp 11,129,28,25,4,3,12,17,8,17,0,27,0,9,0,0,0,2,0,0,-8,13,0,0,0,11,0,22,19,22,14,16,12,22,-17,-8,-11,0,-9,-15,-15,-5,-32,0,0,6,16,3,0,66,46,40,0,19,20,79,59,77,77,87,76,73,78,83,77,109,82,74,72,81,73,106,55,54,56,62,68,74,63,95,95,174,91,89,94,107,79,79,40,22,0,85,92,94,80,68,76,74,45,43,0,0,0,0,-46,120,0,122,0,113,85,145,152,143,144,268,286,304,290,924,906]} 1. e4 e5 2. Bc4 Nf6 3. d3 c6 4. Nf3 Be7 5. O-O d6 6. Re1 O-O 7. Nbd2 {[%cal Bb1d2,Bd2f1,Bf1e3,Be3f5][%mdl 32]} Nbd7 8. a4 Qc7 9. Nf1 {The position is equal.} Re8 10. Ne3 h6 11. c3 (11. Nh4 {feels hotter.} Bf8 12. Ng6 Nb6 13. Bb3) 11... Nf8 12. Qb3 Be6 13. Bxe6 Nxe6 14. Nf5 Bf8 15. Bd2 Kh7 (15... Nc5 $5 16. Qc2 $8 d5 $11) 16. Rad1 g6 {[%cal Oe6c5] aiming for ...Nc5!} 17. Ng3 Nc5 18. Qc2 a5 19. d4 Ne6 20. Bc1 Rad8 21. h3 Bg7 22. dxe5 dxe5 23. Be3 Nd7 24. Ne2 Ndc5 25. b4 {Black must now prevent Rxd8.} Na6 26. Qb3 axb4 27. cxb4 {[%cal Bc3b4,Bb4b5][%mdl 32]} Qe7 28. Rb1 Rd7 29. Bb6 Nd4 (29... Ra8 $11) 30. Nexd4 exd4 31. Qc4 d3 32. b5 Nb8 (32... cxb5 $11 33. axb5 Nc7) 33. Rbd1 $16 Qe6 34. Qxe6 Rxe6 {[#]} 35. Ba7 $1 Re8 {[%cal Be6e8,Be8b8,Bb8c8,Bc8c4][%mdl 32]} 36. Re3 cxb5 37. axb5 (37. Rdxd3 $2 Rxd3 (37... bxa4 $2 38. Rxd7 Nxd7 39. Re2 $19) 38. Rxd3 bxa4 $19) 37... Rde7 38. Bxb8 Rxb8 39. Rdxd3 (39. Rexd3 Rxe4 40. Rd7 Rf4 $11) 39... Rc8 40. Rd5 Rc4 41. Nd2 ({White should try} 41. e5 $16) 41... Rc1+ $14 42. Kh2 Be5+ 43. g3 {[%cal Bg2g3,Bg3g4][%mdl 32]} Bc7 44. Kg2 Bb6 45. Red3 Rcc7 (45... Rc2 $16 {keeps fighting.}) 46. Kf3 (46. e5 $18) 46... Kg7 47. g4 f6 48. Nb3 Kf7 49. Rd6 Re6 50. R6d5 Rce7 (50... Ree7 $11 {remains equal.}) 51. Nd2 $16 Rc7 {Prevents Nc4.} 52. Rd7+ Re7 53. R7d6 Re6 54. Rd8 Rc2 55. R3d7+ Re7 56. Rxe7+ Kxe7 $11 {[%mdl 4096] Endgame. KRB-KRN} 57. Rb8 (57. Rd3 $11) 57... Rc7 $2 (57... Bc5 $1 $15 {stays ahead.} 58. Rxb7+ Kd8) 58. Rh8 (58. Nf1 $16) 58... Ke6 {[#]} (58... Rc2 $11 59. Rh7+ Kd8 60. Rh8+ (60. Rxb7 Bc5 $15) 60... Kc7 61. Rh7+ Kd8 62. Rh8+ (62. Rxb7 Bc5 $15) 62... Kc7 63. Rh7+ Kc8 64. Rh8+ Kc7) 59. Rb8 ({Worse is} 59. Rxh6 Rc2 60. Ke2 Ba5 61. Rxg6 Rxd2+ (61... Bxd2 62. Kd3 $17) 62. Kf3 Bc3 $17 (62... Bb6 63. Rg7 $17)) (59. Nf1 $1 $16) 59... Kd6 (59... Ke7 $11 {keeps the balance.}) 60. Ke2 Kc5 (60... Ba5 $142) 61. Rf8 $16 Kxb5 62. Rxf6 Rg7 (62... Rc6 $16 63. Rf7 Ka6) 63. f4 $18 Bd4 64. Rd6 Kc5 (64... Bc5 65. Rd8 Kb6) 65. Rd5+ {Weighted Error Value: White=0.17 (very precise) /Black=0.29 (precise) .  Mistake:       	White=5     	Black=10     Inaccurate:     	White=7     	Black=5      OK:         	White=18    	Black=16     Best:        	White=5     	Black=3      Strong:       	White=1     	---} 1-0

[Event "45th FIDE Womens Olympiad 2024"]
[Site "Budapest"]
[Date "2024.09.15"]
[Round "5.137"]
[White "Kanyamarala, Trisha"]
[Black "Ampaire Shakira"]
[Result "1/2-1/2"]
[ECO "D20"]
[WhiteElo "2179"]
[BlackElo "1839"]
[Annotator "RC"]
[PlyCount "119"]
[EventDate "2024.09.05"]
[EventType "team-tourn"]
[EventCountry "HUN"]
[SourceTitle "playchess.com"]
[Source "ChessBase"]
[SourceQuality "1"]
[WhiteTeam "Ireland"]
[BlackTeam "Uganda"]
[WhiteTeamCountry "IRL"]
[BlackTeamCountry "UGA"]
[TimeControl "40/5400+30:1800+30"]

1. d4 d5 2. c4 dxc4 3. e3 e5 4. Bxc4 exd4 5. exd4 Qe7+ 6. Ne2 Qb4+ 7. Nd2 Nf6 8. O-O Bd6 9. Qb3 O-O 10. Qxb4 Bxb4 11. Nf3 Bg4 12. Ne5 Bxe2 13. Bxe2 Nbd7 14. Bf3 c6 15. Bg5 Nxe5 16. dxe5 Nd7 17. a3 h6 18. Bf4 Ba5 19. Rad1 Rfd8 20. Bg4 Nf8 21. Bg3 Rxd1 22. Rxd1 Rd8 23. Rxd8 Bxd8 24. Bc8 b6 25. f4 Ne6 26. f5 Nd4 27. Kf2 Kf8 28. Ke3 c5 29. Ke4 Bg5 30. Bf2 Bc1 31. b4 Bxa3 32. bxc5 bxc5 33. Ba6 Nc6 34. Bb7 Na5 35. Bd5 Bb4 36. Kd3 f6 37. e6 Ke7 38. Bg3 c4+ 39. Kc2 Nb3 40. Bf2 Bc5 41. Be1 Nd4+ 42. Kc3 Nxf5 43. Kxc4 Bd6 44. Bf2 Bxh2 45. Bxa7 Bf4 46. Bc5+ Bd6 47. Bf2 g5 48. Kd3 Ng7 49. Ke4 f5+ 50. Kf3 g4+ 51. Ke2 Nxe6 52. Bh4+ Kd7 53. Kf1 Nf4 54. Bf7 Be7 55. Bf2 Bg5 56. Bc5 Nd3 57. Bd4 Kd6 58. Bc4 Nc5 59. Bxc5+ Kxc5 60. Be6 1/2-1/2

[Event "45th FIDE Womens Olympiad 2024"]
[Site "Budapest"]
[Date "2024.09.15"]
[Round "5.138"]
[White "Amoko, Ivy Claire"]
[Black "Mirza, Diana"]
[Result "0-1"]
[ECO "B48"]
[WhiteElo "1820"]
[BlackElo "1962"]
[Annotator "TA"]
[PlyCount "74"]
[EventDate "2024.09.05"]
[EventType "team-tourn"]
[EventCountry "HUN"]
[SourceTitle "playchess.com"]
[Source "ChessBase"]
[SourceQuality "1"]
[WhiteTeam "Uganda"]
[BlackTeam "Ireland"]
[WhiteTeamCountry "UGA"]
[BlackTeamCountry "IRL"]
[TimeControl "40/5400+30:1800+30"]

{[%evp 11,74,16,39,25,25,25,56,53,66,55,108,101,107,64,89,100,138,145,144,139,158,143,144,143,139,75,87,99,99,54,48,46,48,28,45,33,43,31,47,0,13,0,87,39,65,0,0,0,-2,-134,-134,-173,-174,-194,-96,-136,-25,-35,-30,-43,-59,-46,15,-535,-539]} 1. e4 c5 2. Nf3 Nc6 3. d4 cxd4 4. Nxd4 e6 5. Nc3 a6 6. Be3 Qc7 7. Qf3 Nf6 {[%cal Of8a3]} 8. O-O-O Bb4 9. Nxc6 {White is slightly better.} Qxc6 10. Bd4 Bxc3 (10... b5 $14) 11. Bxc3 $16 Qxe4 {Black is weak on the dark squares} 12. Qg3 (12. Bxf6 Qxf3 13. gxf3 gxf6 $15) 12... Qg6 {[#]} 13. Qh4 $1 Ne4 {[#]} 14. Bxg7 {[%mdl 512]} Qxg7 15. Qxe4 f5 16. Qe3 O-O 17. f4 {[%cal Og2g4]} d5 18. c4 (18. Rg1 $142) 18... dxc4 19. Bxc4 Qc7 {Dodges Qb6} 20. Qc3 Qxf4+ 21. Kb1 {Rd3 would now be deadly.} b5 22. Bb3 {[%mdl 1024] aiming for Rd3. White has compensation.} Ra7 23. Rd4 Qg5 24. Rc1 Qf6 25. Qe3 (25. a3 $14) 25... Re7 26. Rd6 {[%cal Oc1c8] Strongly threatening Rxc8!} Kf7 (26... Kh8 $11) 27. Rf1 (27. g3 $16) 27... Rg8 28. Qh3 ({Better is} 28. g3 $14) 28... Kg7 $1 $11 29. Re1 Kh8 30. Qe3 (30. a3 $11 {keeps the balance.}) 30... Rxg2 $40 {[%mdl 128] Black attacks with force.} 31. Re2 Rxe2 32. Qxe2 {And now Rd8+ would win.} Kg7 (32... Re8 $19 {and Black stays clearly on top. ...f4 is the strong threat.} 33. a3 Qg7) 33. a3 Qg6 {Prevents Qg2.} ({Black should try} 33... f4 $17 {Threatens to win with ...Bd7.} 34. Ka2 Bd7 (34... f3 35. Qf2 $17) 35. Qg2+ Kf8 36. Rxa6 Be8 (36... f3 37. Qf2 $17)) 34. Qe5+ $11 Kf7 35. Ka2 Qf6 36. Qc5 Re8 (36... Bd7 $15) 37. Bd5 $2 {[%mdl 8192]} (37. Rc6 $11 {and White is okay.} Bd7 38. Rxa6) 37... Qe5 $1 {Never resign too early!   Weighted Error Value: White=0.41/Black=0.25 (precise) .  Loses game:     	White=1     	---        Mistake:       	White=5     	Black=5      Inaccurate:     	White=3     	Black=3      OK:         	White=7     	Black=9      Best:        	White=1     	Black=3      Strong:       	White=1     	Black=2      Brilliant:      	White=1     	---} 0-1

[Event "45th FIDE Womens Olympiad 2024"]
[Site "Budapest"]
[Date "2024.09.15"]
[Round "5.139"]
[White "Gora, Antonina"]
[Black "Sana Omprakash Kayyar"]
[Result "0-1"]
[ECO "C50"]
[WhiteElo "1943"]
[BlackElo "1937"]
[Annotator "TA"]
[PlyCount "106"]
[EventDate "2024.09.05"]
[EventType "team-tourn"]
[EventCountry "HUN"]
[SourceTitle "playchess.com"]
[Source "ChessBase"]
[SourceQuality "1"]
[WhiteTeam "Ireland"]
[BlackTeam "Uganda"]
[WhiteTeamCountry "IRL"]
[BlackTeamCountry "UGA"]
[TimeControl "40/5400+30:1800+30"]

{[%evp 9,106,14,19,14,24,11,18,8,16,11,16,6,17,20,9,0,0,6,11,0,35,0,0,-1,-17,-20,-14,-27,-6,-19,0,0,0,-14,18,0,-1,0,22,12,34,30,34,0,14,0,0,-14,0,0,29,0,25,0,2,-31,-34,-45,-36,-97,-97,-97,-97,-97,-98,-97,-100,-595,0,-341,-315,-1156,-1120,-1177,-1156,-1092,-1049,-2120,-1801,-2289,-2392,-2158,-2002,-1993,-2499,-2466,-2117,-1589,0,-1298,-1186,-2593,-2902,-2489,-2304,-1535,-1440,-1440,-1433]} 1. e4 e5 2. Nf3 Nc6 3. Bc4 Nf6 4. d3 Bc5 5. O-O a6 6. a4 O-O 7. h3 h6 8. Re1 {The position is equal.} d6 9. c3 Ba7 10. Nbd2 Re8 11. Nf1 Be6 12. Bb3 Bxb3 13. Qxb3 Qd7 14. Ng3 (14. Be3 {simplifies} Bxe3 15. Nxe3 Ne7 16. Qc2) 14... Ne7 15. Nh4 {[%cal Oh4f3]} (15. Qxb7 $2 {is the wrong capture.} Reb8 $19) 15... d5 16. Qc2 Rad8 17. Be3 Bxe3 18. Rxe3 dxe4 19. dxe4 g6 20. Nf3 Nc8 21. Ne1 Nd6 {[%cal Bc8d6,Bd6e8,Be8g7,Bg7e6,Be6f4][%mdl 32]} 22. b3 h5 23. f3 Re7 24. Nd3 Nde8 25. Nf1 Ng7 26. Rae1 c6 27. Nb2 Ne6 28. Nc4 Qc7 29. a5 Nf4 30. Kh2 (30. h4 {simplifies} Ne6 31. Rd1 Red7 32. Rxd7 Rxd7 33. Rd3) 30... Qd7 31. Nb6 Qe6 32. Nd2 h4 33. Ndc4 N6h5 34. Rd1 (34. Na4 $15) 34... Rxd1 $17 {Black converts the advantage convincingly.} 35. Qxd1 Qf6 $40 {[%mdl 128] [#] ...Qg5 is the strong threat. Black has strong attack.} 36. Qe1 (36. Qd8+ Kg7 37. Qd2 Re8 $17) 36... Qg5 37. Qf2 Re8 {Strongly threatening ...Rd8. Black is more active.} 38. Nd7 $2 {[%mdl 8192]} (38. Na4 $17 {nothing else works.}) 38... Re7 $2 (38... Rd8 $19 39. Ncb6 Kg7) 39. Ncb6 {[%mdl 8192]} (39. Ndb6 $11 {and White has nothing to worry.}) 39... Nxg2 $19 40. Qxg2 (40. Rd3) 40... Qxe3 41. b4 Qf4+ 42. Kg1 Qc1+ 43. Kf2 Ng3 44. Nf6+ Kg7 45. Ng4 Qd2+ 46. Kg1 Qe1+ 47. Kh2 Nf1+ 48. Kh1 Ng3+ 49. Kh2 Re8 {[%cal Oe8d8] [#] ( -> ...Rd8!). Black is clearly winning.} 50. Nc4 Nf1+ 51. Kh1 Ne3+ 52. Qg1 Qxg1+ ({Not} 52... Qxc3 53. Ngxe3 Rh8 (53... Qxb4 54. Qa1 $15) 54. Kh2 $15) 53. Kxg1 Nxc4 {Weighted Error Value: White=0.65/Black=0.25 (precise) .  Loses game:     	White=2     	---        Missed win:     	---       	Black=1      Mistake:       	White=2     	---        Inaccurate:     	White=4     	Black=3      OK:         	White=8     	Black=15     Best:        	---       	Black=1} 0-1

[Event "45th FIDE Womens Olympiad 2024"]
[Site "Budapest"]
[Date "2024.09.15"]
[Round "5.140"]
[White "Kawuma Patricia"]
[Black "Putar, Lara"]
[Result "1-0"]
[ECO "E09"]
[WhiteElo "1839"]
[BlackElo "1911"]
[Annotator "TA"]
[PlyCount "87"]
[EventDate "2024.09.05"]
[EventType "team-tourn"]
[EventCountry "HUN"]
[SourceTitle "playchess.com"]
[Source "ChessBase"]
[SourceQuality "1"]
[WhiteTeam "Uganda"]
[BlackTeam "Ireland"]
[WhiteTeamCountry "UGA"]
[BlackTeamCountry "IRL"]
[TimeControl "40/5400+30:1800+30"]

{[%evp 15,87,16,24,10,56,52,37,21,9,-2,127,119,167,120,118,129,163,109,106,105,186,180,190,195,188,189,361,357,1424,1339,1771,1743,1869,1477,1445,1200,1197,1197,1704,1609,1516,1338,1329,1329,1307,1160,1475,1516,1496,1483,1370,1100,29981,29982,29982,29983,5922,1455,1964,1123,1339,911,2841,1757,29966,29967,29968,29969,29969,29971,29966,29967,29964,10950]} 1. d4 Nf6 2. c4 e6 3. g3 d5 4. Bg2 c6 5. Nd2 Be7 6. Ngf3 O-O 7. Qc2 Nbd7 8. O-O c5 9. b3 cxd4 (9... b5 $11) 10. Nxd4 $14 Bc5 11. Bb2 {White is slightly better.} e5 {[%cal Be6e5,Be5e4][%mdl 32]} 12. N4f3 {Threatens to win with cxd5.} Qc7 (12... d4 $11 {keeps the balance.}) 13. e3 $16 Re8 (13... Bb4 $16 {keeps fighting.}) 14. Rac1 (14. cxd5 $18 {Hoping for Rfd1.} Nxd5 15. Ng5) 14... e4 15. Nd4 dxc4 16. Nxc4 ({White should play} 16. Rfd1 $18) 16... Bxd4 17. Bxd4 b6 (17... b5 $16) 18. Qb1 $18 {[%cal Oc4b6] [#] Nxb6! would now be deadly.} Qb8 19. Rfd1 Bb7 20. Bb2 Nd5 $2 (20... Re7 21. Rd2 h5) 21. Bxe4 {[%cal Bg2e4,Be4h7,Bh7f5][%mdl 32]} Nc3 (21... N7f6) 22. Bxh7+ {A strong pair of Bishops.} ({Not} 22. Rxc3 Bxe4 23. Qc1 Rd8 $16) 22... Kf8 23. Bxc3 Nc5 24. Nd6 {[%cal Ob1f5] [#] Qf5! is the strong threat.} Re6 25. Nxb7 Qxb7 26. Bf5 Rh6 27. b4 Ne6 28. Be4 Qb8 29. Bxa8 Qxa8 30. Be5 Ng5 31. Qf5 {Rc8+ would kill now.} Nf3+ 32. Kf1 {[%cal Bg1f1,Bf1e2,Be2f3][%mdl 32]} Re6 33. Bf4 {White threatens Rc7 and mate.} Nd4 34. Rxd4 Qh1+ 35. Ke2 Qxc1 36. Qd3 {Intending Rd8+ and mate.} Qc6 37. Rd6 Qa4 38. Rxe6 Qxa2+ 39. Qd2 Qc4+ 40. Kf3 {[%cal Rd2d8] White mates.} fxe6 41. Qd8+ Kf7 42. Qc7+ Qxc7 43. Bxc7 Ke7 44. Be5 {Weighted Error Value: White=0.16 (very precise) /Black=0.48.  Mistake:       	White=2     	Black=6      Inaccurate:     	---       	Black=1      OK:         	White=6     	Black=1      Best:        	White=1     	Black=2} 1-0